[Event "*** Titled Tuesday Blitz"]
[Site "Chess.com"]
[Date "2019.05.07"]
[Round "2"]
[White "KazakhFighter04"]
[Black "Divertissement"]
[Result "1/2-1/2"]
[WhiteElo "2658"]
[BlackElo "2679"]
[TimeControl "180+2"]
[EndTime "13:24:37 PDT"]
[Termination "Game drawn by repetition"]

1. e4 {[%clk 0:02:22.2]} 1... c6 {[%clk 0:02:45.7]} 2. Nf3 {[%clk 0:02:07.8]}
2... d5 {[%clk 0:02:47]} 3. exd5 {[%clk 0:02:09.7]} 3... cxd5 {[%clk 0:02:47.8]}
4. Ne5 {[%clk 0:02:11.2]} 4... Nc6 {[%clk 0:02:35.8]} 5. d4 {[%clk 0:02:12.3]}
5... Nf6 {[%clk 0:02:27.9]} 6. c3 {[%clk 0:02:07.5]} 6... g6 {[%clk 0:02:19.6]}
7. Nd2 {[%clk 0:02:08.1]} 7... Bg7 {[%clk 0:02:09.2]} 8. Ndf3 {[%clk 0:02:08.5]}
8... O-O {[%clk 0:02:09.2]} 9. Bd3 {[%clk 0:02:09.9]} 9... Ne8 {[%clk
0:01:53.4]} 10. O-O {[%clk 0:01:54.1]} 10... Nd6 {[%clk 0:01:52.9]} 11. Re1
{[%clk 0:01:51.5]} 11... Bf5 {[%clk 0:01:38.3]} 12. Bxf5 {[%clk 0:01:52]} 12...
Nxf5 {[%clk 0:01:33.7]} 13. Qb3 {[%clk 0:01:53.9]} 13... Na5 {[%clk 0:01:22.1]}
14. Qc2 {[%clk 0:01:53.3]} 14... Rc8 {[%clk 0:01:17.4]} 15. Nd3 {[%clk
0:01:50.1]} 15... Nxd4 {[%clk 0:01:12.1]} 16. Nxd4 {[%clk 0:01:49.1]} 16... Bxd4
{[%clk 0:01:12.7]} 17. Qe2 {[%clk 0:01:50.1]} 17... Bf6 {[%clk 0:01:12.1]} 18.
Bh6 {[%clk 0:01:51.6]} 18... Re8 {[%clk 0:01:12.3]} 19. Rad1 {[%clk 0:01:51.9]}
19... e6 {[%clk 0:01:09.6]} 20. Ne5 {[%clk 0:01:52.5]} 20... Bg7 {[%clk
0:00:52.4]} 21. Qe3 {[%clk 0:01:48.8]} 21... Nc4 {[%clk 0:00:27]} 22. Nxc4
{[%clk 0:01:48.9]} 22... Rxc4 {[%clk 0:00:27.2]} 23. Bxg7 {[%clk 0:01:50.1]}
23... Kxg7 {[%clk 0:00:28.5]} 24. Qxa7 {[%clk 0:01:51.6]} 24... Qa8 {[%clk
0:00:26.4]} 25. Qb6 {[%clk 0:01:50.2]} 25... Rec8 {[%clk 0:00:21.4]} 26. a3
{[%clk 0:01:49.8]} 26... R8c6 {[%clk 0:00:21.4]} 27. Qb3 {[%clk 0:01:50.9]}
27... Qa4 {[%clk 0:00:21.8]} 28. Qa2 {[%clk 0:01:46.6]} 28... Rb6 {[%clk
0:00:22.3]} 29. Rd2 {[%clk 0:01:44.2]} 29... Rb3 {[%clk 0:00:22.4]} 30. Qa1
{[%clk 0:01:43.4]} 30... Rc6 {[%clk 0:00:21.7]} 31. Qd1 {[%clk 0:01:43.8]} 31...
Rcb6 {[%clk 0:00:20.9]} 32. Qe2 {[%clk 0:01:43]} 32... Qf4 {[%clk 0:00:19]} 33.
g3 {[%clk 0:01:42.3]} 33... Qd6 {[%clk 0:00:19.9]} 34. h4 {[%clk 0:01:39.4]}
34... h5 {[%clk 0:00:20.3]} 35. c4 {[%clk 0:01:36.7]} 35... d4 {[%clk
0:00:18.6]} 36. Qe4 {[%clk 0:01:33.2]} 36... Rxb2 {[%clk 0:00:16.2]} 37. Rxd4
{[%clk 0:01:32]} 37... Qc5 {[%clk 0:00:17.3]} 38. Re3 {[%clk 0:01:25]} 38... Rd6
{[%clk 0:00:14]} 39. Rxd6 {[%clk 0:00:43]} 39... Qxd6 {[%clk 0:00:15.9]} 40. Rf3
{[%clk 0:00:35.7]} 40... Qd1+ {[%clk 0:00:08.7]} 41. Kg2 {[%clk 0:00:34.1]}
41... Rb1 {[%clk 0:00:09.6]} 42. Qe5+ {[%clk 0:00:35.1]} 42... Kg8 {[%clk
0:00:10.7]} 43. Qb8+ {[%clk 0:00:29.5]} 43... Kg7 {[%clk 0:00:11.9]} 44. Qe5+
{[%clk 0:00:30.6]} 44... Kg8 {[%clk 0:00:10.7]} 45. Qb8+ {[%clk 0:00:24.1]}
45... Kg7 {[%clk 0:00:11.8]} 46. Qe5+ {[%clk 0:00:24.3]} 1/2-1/2

[Event "*** Titled Tuesday Blitz"]
[Site "Chess.com"]
[Date "2019.05.07"]
[Round "2"]
[White "AliKa2810"]
[Black "StoreySniper"]
[Result "1-0"]
[WhiteElo "2500"]
[BlackElo "2416"]
[TimeControl "180+2"]
[EndTime "13:24:38 PDT"]
[Termination "AliKa2810 won on time"]

1. e4 {[%clk 0:03:00.7]} 1... g6 {[%clk 0:02:35.3]} 2. d4 {[%clk 0:03:01.1]}
2... Bg7 {[%clk 0:02:35.8]} 3. Nc3 {[%clk 0:03:01.4]} 3... c5 {[%clk 0:02:36.2]}
4. d5 {[%clk 0:02:58.7]} 4... d6 {[%clk 0:02:28.9]} 5. Nf3 {[%clk 0:02:59.5]}
5... Nf6 {[%clk 0:02:27.5]} 6. Be2 {[%clk 0:02:55.4]} 6... O-O {[%clk
0:02:27.9]} 7. O-O {[%clk 0:02:57]} 7... Bg4 {[%clk 0:02:26.3]} 8. Nd2 {[%clk
0:02:57.4]} 8... Bxe2 {[%clk 0:02:24.4]} 9. Qxe2 {[%clk 0:02:59.1]} 9... a6
{[%clk 0:02:25.3]} 10. a4 {[%clk 0:02:59.7]} 10... b6 {[%clk 0:02:25.1]} 11. Nc4
{[%clk 0:03:00.9]} 11... Nbd7 {[%clk 0:02:24.5]} 12. h3 {[%clk 0:02:58.7]} 12...
Ne8 {[%clk 0:02:23.2]} 13. Bg5 {[%clk 0:02:56.2]} 13... Nc7 {[%clk 0:02:00.8]}
14. Bh4 {[%clk 0:02:34.9]} 14... Rb8 {[%clk 0:01:42.5]} 15. Nxd6 {[%clk
0:02:34.5]} 15... g5 {[%clk 0:01:31.2]} 16. Bxg5 {[%clk 0:02:32.9]} 16... f6
{[%clk 0:01:32.1]} 17. Bf4 {[%clk 0:02:12]} 17... exd6 {[%clk 0:01:31.8]} 18.
Bxd6 {[%clk 0:02:13.1]} 18... Re8 {[%clk 0:01:30.8]} 19. Bxc7 {[%clk 0:02:14.6]}
19... Qxc7 {[%clk 0:01:31.2]} 20. Qxa6 {[%clk 0:02:16.1]} 20... Ne5 {[%clk
0:01:11.7]} 21. Qe2 {[%clk 0:02:07.3]} 21... Ng6 {[%clk 0:01:10.4]} 22. Qg4
{[%clk 0:02:03.3]} 22... Kh8 {[%clk 0:01:02.7]} 23. f4 {[%clk 0:02:03.1]} 23...
Rg8 {[%clk 0:00:59.7]} 24. Rae1 {[%clk 0:02:00.1]} 24... Bh6 {[%clk 0:00:59.7]}
25. Nb5 {[%clk 0:01:38.2]} 25... Qd8 {[%clk 0:00:48.2]} 26. Qf5 {[%clk
0:01:04.2]} 26... Nh4 {[%clk 0:00:47.6]} 27. Qh5 {[%clk 0:01:05.4]} 27... Nxg2
{[%clk 0:00:43.2]} 28. Qxh6 {[%clk 0:00:52.1]} 28... Nxe1+ {[%clk 0:00:43.4]}
29. Kh1 {[%clk 0:00:53.7]} 29... Nxc2 {[%clk 0:00:38.1]} 30. e5 {[%clk
0:00:55.1]} 30... Ne3 {[%clk 0:00:36]} 31. Nd6 {[%clk 0:00:55]} 31... Qf8 {[%clk
0:00:27.7]} 32. Qh5 {[%clk 0:00:42.2]} 32... Nxf1 {[%clk 0:00:23.4]} 33. Nf7+
{[%clk 0:00:41.4]} 33... Qxf7 {[%clk 0:00:14.1]} 34. Qxf7 {[%clk 0:00:42.1]}
34... Ng3+ {[%clk 0:00:14]} 35. Kh2 {[%clk 0:00:43.5]} 35... Rbf8 {[%clk
0:00:14.4]} 36. Qc7 {[%clk 0:00:41]} 36... Nf1+ {[%clk 0:00:11.3]} 37. Kh1
{[%clk 0:00:42.1]} 37... Rg7 {[%clk 0:00:11.9]} 38. Qd6 {[%clk 0:00:39.1]} 38...
Ng3+ {[%clk 0:00:12.5]} 39. Kh2 {[%clk 0:00:38.8]} 39... Ne4 {[%clk 0:00:12.3]}
40. Qxf8+ {[%clk 0:00:39.1]} 40... Rg8 {[%clk 0:00:11.3]} 41. Qh6 {[%clk
0:00:39.2]} 41... Ng3 {[%clk 0:00:07.9]} 42. Qxf6+ {[%clk 0:00:39.7]} 42... Rg7
{[%clk 0:00:09.1]} 43. Qxg7+ {[%clk 0:00:35.5]} 43... Kxg7 {[%clk 0:00:08.4]}
44. Kxg3 {[%clk 0:00:37.1]} 1-0

[Event "*** Titled Tuesday Blitz"]
[Site "Chess.com"]
[Date "2019.05.07"]
[Round "2"]
[White "Mimsychess"]
[Black "Firouzja2003"]
[Result "0-1"]
[WhiteElo "2352"]
[BlackElo "3060"]
[TimeControl "180+2"]
[EndTime "13:24:44 PDT"]
[Termination "Firouzja2003 won by resignation"]

1. e4 {[%clk 0:02:25.9]} 1... e6 {[%clk 0:03:01.9]} 2. d4 {[%clk 0:02:25.3]}
2... d5 {[%clk 0:03:03.6]} 3. Nc3 {[%clk 0:02:26]} 3... Nf6 {[%clk 0:03:03.3]}
4. e5 {[%clk 0:02:26.3]} 4... Nfd7 {[%clk 0:03:04.7]} 5. f4 {[%clk 0:02:27.4]}
5... c5 {[%clk 0:03:06.6]} 6. Nf3 {[%clk 0:02:28.5]} 6... Nc6 {[%clk 0:03:08.2]}
7. Be3 {[%clk 0:02:29.8]} 7... Be7 {[%clk 0:03:04.8]} 8. Qd2 {[%clk 0:02:28.4]}
8... O-O {[%clk 0:02:58.2]} 9. dxc5 {[%clk 0:02:28.3]} 9... Qa5 {[%clk
0:02:56.5]} 10. O-O-O {[%clk 0:02:24]} 10... b6 {[%clk 0:02:57]} 11. Kb1 {[%clk
0:02:19.3]} 11... bxc5 {[%clk 0:02:42.4]} 12. Nb5 {[%clk 0:02:20.4]} 12... Qb6
{[%clk 0:02:36.3]} 13. c4 {[%clk 0:02:14.9]} 13... d4 {[%clk 0:02:31.5]} 14. Bf2
{[%clk 0:02:14.3]} 14... a6 {[%clk 0:02:32.5]} 15. Nd6 {[%clk 0:02:15]} 15...
Bxd6 {[%clk 0:02:33.4]} 16. exd6 {[%clk 0:02:16.7]} 16... Qb8 {[%clk 0:02:31.3]}
17. Bd3 {[%clk 0:02:17.1]} 17... Qxd6 {[%clk 0:02:31.8]} 18. Ng5 {[%clk
0:02:14.3]} 18... h6 {[%clk 0:02:30.3]} 19. Ne4 {[%clk 0:02:07.3]} 19... Qe7
{[%clk 0:02:28.7]} 20. g4 {[%clk 0:02:07.2]} 20... Bb7 {[%clk 0:02:13]} 21. Rhg1
{[%clk 0:01:59.9]} 21... Nb4 {[%clk 0:02:09.6]} 22. g5 {[%clk 0:01:59.7]} 22...
Nxd3 {[%clk 0:02:08.6]} 23. Qxd3 {[%clk 0:02:00.3]} 23... h5 {[%clk 0:02:06.3]}
24. g6 {[%clk 0:01:55.9]} 24... f5 {[%clk 0:02:05.3]} 25. Ng5 {[%clk 0:01:49.5]}
25... Qxg5 {[%clk 0:02:06.1]} 26. Rxg5 {[%clk 0:01:43]} 26... Be4 {[%clk
0:02:04.2]} 27. Rxh5 {[%clk 0:01:40.7]} 27... Nf6 {[%clk 0:02:04.4]} 28. Rh4
{[%clk 0:01:37.3]} 28... Bxd3+ {[%clk 0:01:47.3]} 29. Rxd3 {[%clk 0:01:38.3]}
29... Ng4 {[%clk 0:01:49.2]} 30. Rdh3 {[%clk 0:01:30.8]} 30... Nh6 {[%clk
0:01:50.4]} 31. Rh5 {[%clk 0:01:08.8]} 31... Rf6 {[%clk 0:01:50.8]} 32. Rg5
{[%clk 0:01:08.1]} 32... Re8 {[%clk 0:01:51.4]} 33. Bh4 {[%clk 0:01:08.6]} 33...
e5 {[%clk 0:01:49.6]} 34. Rg1 {[%clk 0:01:04.2]} 34... Rc6 {[%clk 0:01:40.3]}
35. fxe5 {[%clk 0:01:00.4]} 35... Rxe5 {[%clk 0:01:42.2]} 36. Rb3 {[%clk
0:00:53]} 36... Re8 {[%clk 0:01:39.5]} 37. Rb7 {[%clk 0:00:51.4]} 37... Ng4
{[%clk 0:01:39.8]} 38. Bg5 {[%clk 0:00:40.3]} 38... Rxg6 {[%clk 0:01:36.7]} 39.
Bf4 {[%clk 0:00:41.2]} 39... Rge6 {[%clk 0:01:35.7]} 40. h3 {[%clk 0:00:39.8]}
40... Re1+ {[%clk 0:01:36.3]} 41. Rxe1 {[%clk 0:00:41.1]} 41... Rxe1+ {[%clk
0:01:38.2]} 42. Kc2 {[%clk 0:00:42.3]} 42... Nf6 {[%clk 0:01:34.2]} 43. Rc7
{[%clk 0:00:35.8]} 43... Ne4 {[%clk 0:01:31.8]} 44. Be5 {[%clk 0:00:36.8]} 44...
g5 {[%clk 0:01:30.3]} 45. b4 {[%clk 0:00:35.9]} 45... Re2+ {[%clk 0:01:18.9]}
46. Kd1 {[%clk 0:00:34.7]} 46... d3 {[%clk 0:01:14.8]} 47. Rd7 {[%clk
0:00:34.1]} 47... Rxa2 {[%clk 0:01:08.2]} 48. b5 {[%clk 0:00:31.2]} 48... axb5
{[%clk 0:01:07.3]} 49. cxb5 {[%clk 0:00:32.5]} 49... c4 {[%clk 0:01:00.6]} 50.
b6 {[%clk 0:00:28.9]} 50... c3 {[%clk 0:01:01.5]} 51. Bxc3 {[%clk 0:00:21.4]}
51... Nxc3+ {[%clk 0:01:01.7]} 52. Ke1 {[%clk 0:00:22.9]} 52... Rb2 {[%clk
0:00:58.4]} 53. b7 {[%clk 0:00:24]} 53... d2+ {[%clk 0:00:59.9]} 0-1

[Event "*** Titled Tuesday Blitz"]
[Site "Chess.com"]
[Date "2019.05.07"]
[Round "2"]
[White "wonderfultime"]
[Black "VSERGUEI"]
[Result "1-0"]
[WhiteElo "2937"]
[BlackElo "2579"]
[TimeControl "180+2"]
[EndTime "13:24:51 PDT"]
[Termination "wonderfultime won on time"]

1. d4 {[%clk 0:02:59.3]} 1... d5 {[%clk 0:03:00.2]} 2. Nf3 {[%clk 0:02:59.1]}
2... Nf6 {[%clk 0:03:00.5]} 3. Bf4 {[%clk 0:02:59.9]} 3... c5 {[%clk 0:03:01.4]}
4. c3 {[%clk 0:03:01]} 4... cxd4 {[%clk 0:03:00.3]} 5. cxd4 {[%clk 0:03:02]}
5... Nc6 {[%clk 0:03:01.4]} 6. Nc3 {[%clk 0:02:58.8]} 6... Nh5 {[%clk
0:03:02.1]} 7. Be5 {[%clk 0:02:51.7]} 7... e6 {[%clk 0:03:01.9]} 8. e3 {[%clk
0:02:49.4]} 8... Be7 {[%clk 0:03:01.3]} 9. Bd3 {[%clk 0:02:48.1]} 9... Bd7
{[%clk 0:03:00]} 10. h3 {[%clk 0:02:43.1]} 10... Nxe5 {[%clk 0:03:00.1]} 11.
Nxe5 {[%clk 0:01:51.4]} 11... Nf6 {[%clk 0:02:59.7]} 12. Qb3 {[%clk 0:01:53]}
12... Rb8 {[%clk 0:02:57.6]} 13. O-O {[%clk 0:01:53.5]} 13... O-O {[%clk
0:02:57.5]} 14. Rac1 {[%clk 0:01:54.7]} 14... Qa5 {[%clk 0:02:47]} 15. Rc2
{[%clk 0:01:47.3]} 15... b5 {[%clk 0:02:35.7]} 16. Ne2 {[%clk 0:01:36.5]} 16...
Rfd8 {[%clk 0:02:26]} 17. Rfc1 {[%clk 0:01:35.3]} 17... Be8 {[%clk 0:02:25.9]}
18. Nc6 {[%clk 0:01:34.7]} 18... Bxc6 {[%clk 0:02:26.1]} 19. Rxc6 {[%clk
0:01:36.6]} 19... Bd6 {[%clk 0:02:24]} 20. a3 {[%clk 0:01:32.6]} 20... g6 {[%clk
0:02:23]} 21. Qc3 {[%clk 0:01:22.9]} 21... b4 {[%clk 0:02:21.8]} 22. Qd2 {[%clk
0:01:23.7]} 22... Kg7 {[%clk 0:02:15]} 23. Ra6 {[%clk 0:01:23.2]} 23... Ne4
{[%clk 0:02:05.1]} 24. Qe1 {[%clk 0:01:24.3]} 24... Qxa6 {[%clk 0:01:51]} 25.
Bxa6 {[%clk 0:01:26.2]} 25... bxa3 {[%clk 0:01:52.2]} 26. bxa3 {[%clk
0:01:26.3]} 26... Bxa3 {[%clk 0:01:53.3]} 27. Rb1 {[%clk 0:01:23.6]} 27... Rxb1
{[%clk 0:01:47.8]} 28. Qxb1 {[%clk 0:01:25.5]} 28... Rd6 {[%clk 0:01:48.7]} 29.
Bd3 {[%clk 0:01:22.8]} 29... Rb6 {[%clk 0:01:47.9]} 30. Qa2 {[%clk 0:01:23.7]}
30... Bd6 {[%clk 0:01:42.4]} 31. Qxa7 {[%clk 0:01:22.1]} 31... Rb3 {[%clk
0:01:42.5]} 32. Bxe4 {[%clk 0:01:23.1]} 32... dxe4 {[%clk 0:01:43]} 33. g3
{[%clk 0:01:24.5]} 33... h5 {[%clk 0:01:35.1]} 34. h4 {[%clk 0:01:25.1]} 34...
Rb1+ {[%clk 0:01:33.5]} 35. Kg2 {[%clk 0:01:25.8]} 35... Bb4 {[%clk 0:01:34.4]}
36. Qa2 {[%clk 0:01:14.6]} 36... Re1 {[%clk 0:01:31.3]} 37. Nf4 {[%clk
0:01:13.4]} 37... Bd6 {[%clk 0:01:31.1]} 38. Qc2 {[%clk 0:01:12.7]} 38... Bxf4
{[%clk 0:01:27.7]} 39. gxf4 {[%clk 0:01:14.6]} 39... Ra1 {[%clk 0:01:27.8]} 40.
Qxe4 {[%clk 0:01:15.3]} 40... Ra5 {[%clk 0:01:28.3]} 41. Qc6 {[%clk 0:01:16.2]}
41... Rf5 {[%clk 0:01:28.2]} 42. Kg3 {[%clk 0:01:16.9]} 42... Rd5 {[%clk
0:01:29]} 43. Qb6 {[%clk 0:01:15.4]} 43... Rd7 {[%clk 0:01:24.5]} 44. e4 {[%clk
0:01:16.4]} 44... Kg8 {[%clk 0:01:22.7]} 45. Qc5 {[%clk 0:01:16.7]} 45... Kg7
{[%clk 0:01:22.2]} 46. Kf3 {[%clk 0:01:14.8]} 46... Rb7 {[%clk 0:01:19.7]} 47.
d5 {[%clk 0:01:15.2]} 47... exd5 {[%clk 0:01:19.9]} 48. exd5 {[%clk 0:01:17.1]}
48... Rb3+ {[%clk 0:01:20.8]} 49. Ke4 {[%clk 0:01:18.6]} 49... Rb1 {[%clk
0:01:18.1]} 50. d6 {[%clk 0:01:19.5]} 50... Rd1 {[%clk 0:01:18.6]} 51. Qc7
{[%clk 0:01:11.8]} 51... Kf6 {[%clk 0:01:14.4]} 52. Qe7+ {[%clk 0:01:12.6]}
52... Kg7 {[%clk 0:01:15.2]} 53. Kf3 {[%clk 0:01:14.5]} 53... Rd3+ {[%clk
0:01:14.5]} 54. Kg2 {[%clk 0:01:15.6]} 54... Rd5 {[%clk 0:00:57.2]} 55. d7
{[%clk 0:01:16.3]} 55... Rf5 {[%clk 0:00:56.8]} 56. d8=Q {[%clk 0:01:16.9]}
56... Kh7 {[%clk 0:00:55.2]} 57. Qef8 {[%clk 0:01:16.6]} 57... g5 {[%clk
0:00:47.9]} 58. Qh8+ {[%clk 0:01:16.6]} 1-0

[Event "*** Titled Tuesday Blitz"]
[Site "Chess.com"]
[Date "2019.05.07"]
[Round "2"]
[White "mikhaillushenkov"]
[Black "Veiso"]
[Result "1-0"]
[WhiteElo "2763"]
[BlackElo "2354"]
[TimeControl "180+2"]
[EndTime "13:25:00 PDT"]
[Termination "mikhaillushenkov won on time"]

1. Nf3 {[%clk 0:03:01.9]} 1... c5 {[%clk 0:02:56.9]} 2. c4 {[%clk 0:03:02.8]}
2... Nf6 {[%clk 0:02:56.6]} 3. Nc3 {[%clk 0:03:01.6]} 3... Nc6 {[%clk
0:02:57.1]} 4. d4 {[%clk 0:03:02.3]} 4... g6 {[%clk 0:02:48.7]} 5. d5 {[%clk
0:03:03.3]} 5... Nb8 {[%clk 0:02:39.7]} 6. e4 {[%clk 0:03:04.2]} 6... d6 {[%clk
0:02:40.1]} 7. h3 {[%clk 0:03:04.9]} 7... Bg7 {[%clk 0:02:41.6]} 8. Bd3 {[%clk
0:03:05.8]} 8... O-O {[%clk 0:02:43]} 9. Bf4 {[%clk 0:03:00.8]} 9... Na6 {[%clk
0:02:43.6]} 10. a3 {[%clk 0:03:01.2]} 10... Nc7 {[%clk 0:02:42.9]} 11. Qd2
{[%clk 0:03:02.5]} 11... a6 {[%clk 0:02:41.9]} 12. b4 {[%clk 0:02:52.3]} 12...
b6 {[%clk 0:02:39]} 13. Rb1 {[%clk 0:02:53.2]} 13... e6 {[%clk 0:02:38.3]} 14.
O-O {[%clk 0:02:52.2]} 14... exd5 {[%clk 0:02:37.2]} 15. exd5 {[%clk 0:02:49.5]}
15... Re8 {[%clk 0:02:34.5]} 16. Rfe1 {[%clk 0:02:46.2]} 16... Rxe1+ {[%clk
0:02:32.3]} 17. Rxe1 {[%clk 0:02:48.1]} 17... Qf8 {[%clk 0:02:33]} 18. Ng5
{[%clk 0:02:46.1]} 18... Bd7 {[%clk 0:02:26.9]} 19. Nge4 {[%clk 0:02:45.1]}
19... Nxe4 {[%clk 0:02:25.3]} 20. Nxe4 {[%clk 0:02:47]} 20... Ne8 {[%clk
0:02:26.3]} 21. bxc5 {[%clk 0:02:44.7]} 21... bxc5 {[%clk 0:02:26.3]} 22. Rb1
{[%clk 0:02:45.8]} 22... Bf5 {[%clk 0:02:25.2]} 23. Ng3 {[%clk 0:02:43.7]} 23...
Bxd3 {[%clk 0:02:23.9]} 24. Qxd3 {[%clk 0:02:45.6]} 24... Qe7 {[%clk 0:02:25.2]}
25. Ne4 {[%clk 0:02:42.2]} 25... Be5 {[%clk 0:02:17.8]} 26. Bg5 {[%clk
0:02:37.5]} 26... f6 {[%clk 0:02:18.3]} 27. Bd2 {[%clk 0:02:35.1]} 27... Qc7
{[%clk 0:02:10.1]} 28. Qb3 {[%clk 0:02:34.3]} 28... Bd4 {[%clk 0:01:54.7]} 29.
Qb7 {[%clk 0:02:29.2]} 29... Qxb7 {[%clk 0:01:34.4]} 30. Rxb7 {[%clk 0:02:31.1]}
30... f5 {[%clk 0:00:57.2]} 31. Ng5 {[%clk 0:02:29]} 31... Nf6 {[%clk
0:00:58.5]} 32. Ne6 {[%clk 0:02:28.2]} 32... Ne4 {[%clk 0:00:58]} 33. Be1 {[%clk
0:02:26.5]} 33... a5 {[%clk 0:00:32.7]} 34. a4 {[%clk 0:02:22.7]} 34... Bc3
{[%clk 0:00:31.4]} 35. Kf1 {[%clk 0:02:20.7]} 35... Bxe1 {[%clk 0:00:31.9]} 36.
Kxe1 {[%clk 0:02:22.6]} 36... Nc3 {[%clk 0:00:33.7]} 37. Nc7 {[%clk 0:02:12.6]}
37... Rc8 {[%clk 0:00:30.2]} 38. Nb5 {[%clk 0:02:13.5]} 38... Nxa4 {[%clk
0:00:28.7]} 39. Nxd6 {[%clk 0:02:13.2]} 39... Ra8 {[%clk 0:00:29.7]} 40. Kd2
{[%clk 0:02:09.4]} 40... Ra6 {[%clk 0:00:27]} 41. Nc8 {[%clk 0:02:01.6]} 41...
Ra8 {[%clk 0:00:22.3]} 42. Ne7+ {[%clk 0:02:00.1]} 42... Kf8 {[%clk 0:00:21.1]}
43. Nc6 {[%clk 0:02:01.6]} 43... Ra6 {[%clk 0:00:18.5]} 44. Ne5 {[%clk
0:01:58.8]} 44... Ke8 {[%clk 0:00:16.6]} 45. Rxh7 {[%clk 0:01:52.8]} 45... Nb6
{[%clk 0:00:17.3]} 46. Rh8+ {[%clk 0:01:50.7]} 46... Ke7 {[%clk 0:00:18.2]} 47.
Nc6+ {[%clk 0:01:51.5]} 47... Kd6 {[%clk 0:00:18.7]} 48. Kd3 {[%clk 0:01:04.7]}
48... a4 {[%clk 0:00:19.5]} 49. Nd8 {[%clk 0:01:03.2]} 49... Ra7 {[%clk
0:00:13.1]} 50. Rh6 {[%clk 0:00:48.1]} 50... a3 {[%clk 0:00:13.9]} 51. Rxg6+
{[%clk 0:00:49.1]} 51... Kd7 {[%clk 0:00:15.1]} 52. Rg7+ {[%clk 0:00:41.3]}
52... Kxd8 {[%clk 0:00:04.3]} 53. Rxa7 {[%clk 0:00:43.2]} 1-0

[Event "*** Titled Tuesday Blitz"]
[Site "Chess.com"]
[Date "2019.05.07"]
[Round "2"]
[White "TregubovP"]
[Black "Kangoroo3000"]
[Result "0-1"]
[WhiteElo "2523"]
[BlackElo "2672"]
[TimeControl "180+2"]
[EndTime "13:25:06 PDT"]
[Termination "Kangoroo3000 won by resignation"]

1. d4 {[%clk 0:03:01.9]} 1... d5 {[%clk 0:03:00.8]} 2. c4 {[%clk 0:03:03]} 2...
e6 {[%clk 0:03:02.3]} 3. Nc3 {[%clk 0:03:02.4]} 3... Nf6 {[%clk 0:03:03.4]} 4.
cxd5 {[%clk 0:03:03.4]} 4... Nxd5 {[%clk 0:02:41.7]} 5. e4 {[%clk 0:03:03.5]}
5... Nxc3 {[%clk 0:02:43]} 6. bxc3 {[%clk 0:03:04.4]} 6... c5 {[%clk 0:02:44.9]}
7. Nf3 {[%clk 0:03:03]} 7... cxd4 {[%clk 0:02:46]} 8. cxd4 {[%clk 0:03:04.3]}
8... Bb4+ {[%clk 0:02:47.6]} 9. Bd2 {[%clk 0:03:05.5]} 9... Bxd2+ {[%clk
0:02:49.3]} 10. Qxd2 {[%clk 0:03:06.2]} 10... O-O {[%clk 0:02:51.2]} 11. Bc4
{[%clk 0:03:06]} 11... Nd7 {[%clk 0:02:48.7]} 12. O-O {[%clk 0:03:05.9]} 12...
b6 {[%clk 0:02:49.8]} 13. a4 {[%clk 0:03:00.7]} 13... Bb7 {[%clk 0:02:50.7]} 14.
Rfe1 {[%clk 0:03:00.9]} 14... Nf6 {[%clk 0:02:51.6]} 15. Bd3 {[%clk 0:02:59.1]}
15... Rc8 {[%clk 0:02:52.3]} 16. a5 {[%clk 0:02:56.9]} 16... Qc7 {[%clk
0:02:53.2]} 17. Qe3 {[%clk 0:02:44]} 17... Rfd8 {[%clk 0:02:41.9]} 18. h3 {[%clk
0:02:43.7]} 18... h6 {[%clk 0:02:42.7]} 19. Rec1 {[%clk 0:02:38.1]} 19... Qe7
{[%clk 0:02:27.5]} 20. axb6 {[%clk 0:02:36.7]} 20... axb6 {[%clk 0:02:28.7]} 21.
Rab1 {[%clk 0:02:36.4]} 21... Rxc1+ {[%clk 0:02:29.4]} 22. Rxc1 {[%clk
0:02:35.8]} 22... Rc8 {[%clk 0:01:43.6]} 23. Rxc8+ {[%clk 0:02:35.4]} 23... Bxc8
{[%clk 0:01:45.5]} 24. Ne5 {[%clk 0:02:36.5]} 24... Qc7 {[%clk 0:01:39.6]} 25.
Qd2 {[%clk 0:02:25.7]} 25... Bb7 {[%clk 0:01:36.1]} 26. f3 {[%clk 0:02:26.4]}
26... Nd7 {[%clk 0:01:26.9]} 27. Nc4 {[%clk 0:02:21.5]} 27... Ba6 {[%clk
0:01:12.9]} 28. Qb4 {[%clk 0:02:13]} 28... Bxc4 {[%clk 0:01:01.1]} 29. Bxc4
{[%clk 0:02:07.4]} 29... e5 {[%clk 0:00:58.9]} 30. Qb3 {[%clk 0:01:15.4]} 30...
exd4 {[%clk 0:00:46.3]} 31. Bxf7+ {[%clk 0:01:15.6]} 31... Kf8 {[%clk
0:00:47.7]} 32. Bc4 {[%clk 0:01:05]} 32... Nc5 {[%clk 0:00:43.2]} 33. Qa3 {[%clk
0:01:04.4]} 33... Ke7 {[%clk 0:00:31]} 34. Bb5 {[%clk 0:00:47.1]} 34... Qd6
{[%clk 0:00:27]} 35. Bd3 {[%clk 0:00:19.7]} 35... Kf6 {[%clk 0:00:24.3]} 36. Kf1
{[%clk 0:00:18.9]} 36... Nxe4 {[%clk 0:00:23.1]} 37. Qb2 {[%clk 0:00:12.4]}
37... Nc5 {[%clk 0:00:22.8]} 38. Qb5 {[%clk 0:00:08.2]} 38... h5 {[%clk
0:00:22.4]} 39. h4 {[%clk 0:00:06.8]} 39... Ke5 {[%clk 0:00:19.6]} 40. Ke2
{[%clk 0:00:05.6]} 40... Kf6 {[%clk 0:00:18.5]} 41. Bc4 {[%clk 0:00:05.6]} 41...
Ne6 {[%clk 0:00:17.1]} 42. Kf1 {[%clk 0:00:05.3]} 42... Nc5 {[%clk 0:00:16.1]}
43. Ke2 {[%clk 0:00:03.6]} 43... g6 {[%clk 0:00:17.6]} 44. Bd3 {[%clk
0:00:02.7]} 44... Qe6+ {[%clk 0:00:17.4]} 45. Kf1 {[%clk 0:00:03.7]} 45... Qb3
{[%clk 0:00:12.6]} 46. Qxb3 {[%clk 0:00:03.5]} 46... Nxb3 {[%clk 0:00:13.9]} 47.
Bc4 {[%clk 0:00:04.4]} 47... Nd2+ {[%clk 0:00:13]} 0-1